bitfinex/quotes_ETHUSD_20260227
["timestamp","ask_amount","ask_price","bid_price","bid_amount"]
[1772211851293,0.001,1933.7,1933.1,3.02176046]
[1772211851673,0.001,1933.7,1933.2,1.29319263]
[1772211852353,0.001,1933.7,1933.2,1.87865142]
[1772211853887,0.00153886,1934.0,1933.6,0.58545879]
[1772211854352,1.85615725,1934.8,1933.9,3.02176046]
[1772211854552,0.56400628,1934.7,1933.7,0.58545879]
[1772211856068,1.85626307,1934.6,1933.8,1.29279139]
[1772211856257,3.10626307,1934.6,1933.8,1.29279139]
[1772211858082,1.2923904,1934.4,1933.7,1.87826614]
[1772211858288,1.85639668,1934.4,1933.7,1.87826614]
[1772211858487,0.56400628,1934.3,1933.7,1.29280735]
[1772211858686,0.56400628,1934.3,1933.5,1.87838888]
[1772211860394,0.56400628,1934.1,1933.4,1.29300511]
[1772211860692,1.249,1934.0,1933.4,1.29300511]
[1772211861098,1.249,1934.2,1933.5,0.58545879]
[1772211861792,1.81300628,1934.2,1933.5,0.58545879]
[1772211861997,1.81300628,1934.2,1933.4,1.29300511]
[1772211862180,1.249,1934.2,1933.6,1.8783839]
[1772211862501,1.249,1934.5,1933.9,0.58545879]
[1772211862801,1.29327234,1934.6,1933.9,0.58545879]
[1772211863100,0.001,1934.6,1934.1,0.58545879]
[1772211863992,1.29327428,1934.6,1933.7,0.58545879]
[1772211864199,1.29327428,1934.6,1933.8,1.29279139]
[1772211864401,1.85728056,1934.6,1933.8,1.29279139]
[1772211864872,1.85728056,1934.6,1933.8,1.87825018]
[1772211866072,0.56400628,1934.5,1933.8,1.29279139]
[1772211866287,0.56500628,1934.6,1933.9,5.7560896]
[1772211866572,0.56500628,1934.6,1933.9,1.29272454]
[1772211868179,1.248,1934.5,1933.9,1.29272454]
[1772211868380,0.56400628,1934.4,1933.7,1.8782774]
[1772211868788,0.56400628,1934.4,1933.6,1.29288605]
[1772211868995,0.56400628,1934.4,1933.5,1.87839931]
[1772211869197,0.56400628,1934.4,1933.5,1.29294052]
[1772211869397,0.56400628,1934.4,1933.3,1.29312574]
[1772211869599,2.43630167,1934.3,1933.3,1.87858453]
[1772211869801,2.43630167,1934.3,1933.2,1.29314909]
[1772211869802,0.56400628,1934.2,1933.2,1.29314909]
[1772211870003,0.56400628,1933.8,1933.0,1.29486249]
[1772211870309,1.29299198,1933.5,1933.0,0.00153886]
[1772211870970,1.85699826,1933.5,1933.0,0.00153886]
[1772211871176,0.56400628,1933.4,1932.8,0.0011]
[1772211873019,0.56400628,1933.1,1932.7,0.0011]
[1772211873308,1.85713202,1933.3,1932.7,0.0011]
[1772211873506,1.249,1933.2,1933.0,0.0011]
[1772211873701,1.81300628,1933.2,1933.0,0.0011]
[1772211873883,0.56400628,1933.1,1932.7,0.0011]
[1772211874079,0.56400628,1933.1,1932.5,0.0011]
[1772211874281,0.56400628,1932.8,1932.5,0.0011]
[1772211874520,1.25,1932.7,1932.5,0.0011]
[1772211874703,1.81400628,1932.7,1932.5,0.0011]
[1772211874891,1.29359412,1932.6,1932.4,0.0011]
[1772211875778,0.56400628,1932.5,1932.2,0.0011]
[1772211875982,5.17400759,1932.8,1932.2,0.0011]
[1772211875983,1.8575116,1932.8,1932.2,0.0011]
[1772211876299,0.839,1932.7,1932.2,0.58655879]
[1772211876518,1.293475,1932.8,1932.2,0.58655879]
[1772211876701,1.251,1932.6,1932.2,0.58655879]
[1772211876900,1.251,1932.6,1932.2,0.0011]
[1772211877185,1.29342609,1932.9,1932.2,0.58655879]
[1772211877514,1.251,1932.8,1932.2,0.58655879]
[1772211877903,1.251,1932.7,1932.2,0.58655879]
[1772211879710,1.251,1932.7,1932.3,1.29379495]
[1772211880011,1.251,1932.8,1932.4,0.54372602]
[1772211880187,1.251,1932.9,1932.4,0.54372602]
[1772211881818,1.29336754,1933.0,1932.4,1.83739145]
[1772211881983,1.84840215,1933.3,1932.5,0.58227085]
[1772211882187,5.23727544,1933.6,1932.6,0.58227085]
[1772211882188,1.29299198,1933.5,1932.6,0.58227085]
[1772211882399,1.251,1933.4,1932.6,0.58227085]
[1772211882720,0.5696435,1933.3,1932.6,0.58227085]
[1772211883097,1.25,1933.2,1932.6,0.58227085]
[1772211883808,1.25,1933.1,1932.7,1.29352718]
[1772211885287,0.001,1933.0,1932.7,1.29352718]
[1772211885689,0.001,1933.0,1932.6,0.58227085]
[1772211885906,0.001,1933.0,1932.5,1.2947555]
[1772211887119,0.5706435,1933.0,1932.5,0.0011]
[1772211887905,0.001,1933.0,1932.5,0.0011]
[1772211888111,1.25,1932.9,1932.5,0.58337085]
[1772211888515,0.001,1933.0,1932.5,0.58337085]
[1772211888812,1.251,1933.0,1932.5,0.58337085]
[1772211890314,0.001,1933.0,1932.6,1.29359412]
[1772211890494,1.251,1933.0,1932.6,1.29359412]
[1772211891898,1.251,1933.0,1932.6,1.87586497]
[1772211892227,1.251,1933.0,1932.6,1.29359412]
[1772211892416,3.11401506,1933.0,1932.5,0.0011]
[1772211896120,0.001,1933.0,1932.6,0.58227085]
[1772211896320,0.66106254,1933.0,1932.7,0.58227085]
[1772211896626,0.66106254,1933.0,1932.8,1.29346026]
[1772211897210,1.253,1933.1,1932.8,1.29346026]
[1772211897416,0.001,1932.9,1932.8,1.29346026]
[1772211897821,1.253,1933.3,1932.8,1.87573111]
[1772211898707,1.253,1933.3,1932.9,0.58227085]
[1772211900209,1.253,1933.3,1932.8,1.29346026]
[1772211900404,1.253,1933.3,1932.8,0.58227085]
[1772211900604,1.253,1933.3,1932.7,1.29350686]
[1772211900805,1.253,1933.3,1932.8,0.58227085]
[1772211902232,2.5461282,1933.3,1932.8,0.58227085]
[1772211902440,3.1157717,1933.3,1932.7,1.29350686]
[1772211902644,0.5696435,1933.2,1932.5,0.0011]
[1772211902819,1.86296993,1933.0,1932.5,0.0011]
[1772211903010,1.253,1932.9,1932.5,0.0011]
[1772211903337,1.253,1933.4,1932.9,0.58227085]
[1772211904722,1.29319263,1933.2,1932.5,0.0011]
[1772211904905,5.74094042,1933.8,1932.9,0.58227085]
[1772211905110,1.253,1933.7,1932.9,0.58227085]
[1772211905307,0.5696435,1933.8,1932.9,0.58227085]
[1772211905735,1.253,1933.7,1933.1,0.58227085]
[1772211906926,1.253,1933.7,1933.2,1.29319263]
[1772211907125,2.54586428,1933.7,1933.2,1.29319263]
[1772211907333,1.253,1933.7,1933.2,1.29319263]
[1772211908840,1.8625687,1933.6,1932.9,1.29339334]
[1772211909014,1.8625687,1933.6,1932.9,1.87566419]
[1772211909417,0.5696435,1933.6,1932.9,1.87566419]
[1772211909738,1.86356899,1933.6,1933.0,0.0011]
[1772211910045,0.5706435,1933.6,1933.0,0.0011]
[1772211910346,1.86358172,1933.6,1933.0,0.0011]
[1772211910540,0.5706435,1933.6,1933.0,0.0011]
[1772211910722,1.86357135,1933.6,1933.0,0.0011]
[1772211911324,0.5706435,1933.6,1933.0,0.0011]
[1772211911629,1.86357137,1933.6,1933.0,0.0011]
[1772211911834,0.5850112,1933.5,1933.0,0.0011]
[1772211913231,1.29305886,1933.4,1933.0,0.0011]
[1772211913541,1.8380112,1933.3,1933.0,0.0011]
[1772211914438,1.253,1933.3,1933.0,0.0011]
[1772211914652,1.87805262,1933.5,1933.0,0.0011]
[1772211914839,1.254,1933.4,1933.0,0.0011]
[1772211915022,1.8390112,1933.4,1933.0,0.0011]
[1772211915228,1.87813694,1933.3,1933.0,0.0011]
[1772211915629,0.5850112,1933.2,1932.9,0.0011]
[1772211916122,1.255,1933.4,1932.9,0.55276215]
[1772211916327,0.001,1933.6,1932.9,0.55276215]
[1772211916546,0.00153886,1934.0,1932.9,0.55276215]
[1772211916751,0.001,1934.2,1933.6,0.55166215]
[1772211917441,0.001,1934.2,1933.7,1.29285825]
[1772211918127,1.255,1934.1,1933.4,1.29305886]
[1772211918542,0.5860112,1934.2,1933.4,1.84472101]
[1772211918736,0.5860112,1934.2,1933.4,1.29305886]
[1772211919245,0.5860112,1934.2,1933.3,1.84474429]
[1772211919545,0.5850112,1934.0,1933.3,1.29308214]
[1772211919840,0.5850112,1934.0,1933.2,0.55166215]
[1772211920542,0.5850112,1934.0,1933.1,5.1729206]
[1772211921440,1.29272454,1933.9,1933.0,1.84646054]
[1772211921630,1.254,1933.8,1933.0,1.84646054]
[1772211921830,0.001,1934.2,1933.1,0.55166215]
[1772211922029,0.001,1934.2,1933.2,0.55166215]
[1772211922030,1.253,1934.1,1933.2,0.55166215]
[1772211922574,0.5850112,1934.0,1933.0,1.87232654]
[1772211922915,0.5850112,1934.0,1933.0,1.87342654]
[1772211923346,0.5850112,1934.0,1933.1,0.55166215]
[1772211923648,1.87773574,1933.9,1933.2,1.29319263]
[1772211923948,3.40939576,1933.8,1933.0,0.02850486]
[1772211924137,0.5850112,1933.7,1933.0,1.32182006]
[1772211924341,3.40939576,1933.8,1933.0,1.32182006]
[1772211924342,1.8380112,1933.6,1933.0,1.32182006]
[1772211924542,0.5850112,1933.6,1933.0,1.32182006]
[1772211924739,4.38436211,1933.9,1933.0,1.87348221]
[1772211925051,1.253,1933.8,1933.1,0.55166215]
[1772211925351,0.5850112,1933.7,1933.0,1.32183091]
[1772211925658,0.5850112,1933.5,1933.0,1.3218261]
[1772211926049,0.5850112,1933.5,1933.0,1.32182947]
[1772211926627,0.5850112,1933.5,1933.0,0.02850486]
[1772211927239,0.5850112,1933.4,1932.7,0.0011]
[1772211927647,1.87813694,1933.3,1932.7,0.0011]
[1772211928246,0.5850112,1933.2,1932.7,0.0011]
[1772211928429,1.256,1933.1,1932.7,0.0011]
[1772211929872,1.29326823,1933.1,1932.7,0.0011]
[1772211930153,1.256,1933.0,1932.7,0.0011]
[1772211930354,1.87804454,1933.5,1932.7,0.55276215]
[1772211930560,1.257,1933.4,1932.7,0.55276215]
[1772211931162,1.8420112,1933.4,1932.7,0.55276215]
[1772211931737,3.13507721,1933.4,1932.7,0.55276215]
[1772211931937,3.99440696,1933.2,1932.7,0.0011]
[1772211932138,0.5850112,1933.2,1932.7,0.0011]
[1772211932865,3.13507721,1933.4,1932.7,1.29461843]
[1772211933057,3.13507721,1933.4,1932.7,1.84628058]
[1772211933058,0.5850112,1933.4,1932.7,1.84628058]
[1772211933234,1.87796617,1933.6,1932.8,0.55166215]
[1772211933579,1.258,1933.5,1932.8,0.55166215]
[1772211934035,1.258,1933.5,1932.9,1.29339334]
[1772211934665,2.55099682,1933.5,1932.9,1.29339334]
[1772211935068,1.258,1933.5,1932.9,1.29339334]
[1772211936080,2.55100491,1933.5,1932.9,1.29339334]
[1772211936557,1.257,1933.4,1932.9,1.29339334]
[1772211936752,1.257,1933.4,1932.9,1.84505549]
[1772211937382,1.257,1933.7,1933.0,0.55166215]
[1772211937561,1.29423933,1934.0,1933.0,0.55166215]
[1772211937740,1.258,1933.9,1933.0,0.55166215]
[1772211938972,1.29423933,1934.0,1933.3,0.55166215]
[1772211938973,0.00153886,1934.0,1933.3,0.55166215]
[1772211939267,1.87934019,1934.0,1933.2,0.54700148]
[1772211940456,0.58667101,1934.0,1933.2,0.54700148]
[1772211940651,0.00153886,1934.0,1933.2,0.54700148]
[1772211940963,0.00153886,1934.0,1933.4,0.58251792]
[1772211941637,0.001,1934.1,1933.5,0.58251792]
[1772211943261,0.001,1934.1,1933.6,1.29292511]
[1772211944673,0.59079122,1934.1,1933.6,1.29292511]
[1772211945286,1.84479122,1934.1,1933.6,1.29292511]
[1772211945971,0.001,1934.1,1933.5,5.75421837]
[1772211946138,0.001,1934.1,1933.6,0.58251792]
[1772211946667,0.001,1934.2,1933.6,0.58251792]
[1772211947570,0.001,1934.0,1933.6,0.58251792]
[1772211948060,0.001,1934.0,1933.8,0.58251792]
[1772211948667,0.001,1934.0,1933.4,1.8755099]
[1772211948873,0.001,1934.0,1933.6,0.58251792]
[1772211949859,0.59079122,1934.0,1933.4,5.17213221]
[1772211950366,1.88346533,1934.0,1933.4,5.17213221]
[1772211950570,1.88346533,1934.0,1933.4,1.29305886]
[1772211950765,0.58979122,1933.9,1933.3,1.29307612]
[1772211951437,0.58979122,1933.9,1933.0,0.58515678]
[1772211951637,0.58979122,1933.9,1933.1,1.29325953]
[1772211951864,0.58979122,1933.9,1933.0,1.29591511]
[1772211952067,0.58979122,1933.7,1933.0,0.00263886]
[1772211952251,1.252,1933.6,1933.0,0.00263886]
[1772211953060,1.29279139,1933.8,1933.0,0.58515678]
[1772211953243,1.252,1933.8,1933.0,0.58515678]
[1772211954082,1.29285825,1933.7,1933.1,1.29325953]
[1772211955341,1.29285825,1933.7,1933.1,1.87577745]
[1772211957345,0.58979122,1933.9,1933.1,1.87577745]
[1772211957679,0.58979122,1933.7,1933.1,1.29325953]
[1772211959073,0.58979122,1933.7,1933.0,5.17575579]
[1772211959074,1.88269484,1933.7,1933.0,5.75827371]
[1772211959778,0.58979122,1933.6,1933.0,0.00263886]
[1772211960085,0.58979122,1933.6,1933.2,0.0011]
[1772211960378,0.58979122,1933.6,1933.0,0.00263886]
[1772211960955,0.58979122,1933.4,1932.8,0.0011]
[1772211961171,0.58979122,1933.2,1932.8,0.0011]
[1772211962482,1.84179122,1933.2,1932.8,0.0011]
[1772211963367,3.13500319,1933.2,1932.8,0.0011]
[1772211963551,1.84179122,1933.2,1932.8,0.0011]
[1772211964168,0.58979122,1933.1,1932.8,0.0011]
[1772211964368,0.58979122,1933.1,1932.5,0.0011]
[1772211964369,0.58979122,1933.0,1932.5,0.0011]
[1772211965674,0.58979122,1932.9,1932.5,0.0011]
[1772211966180,2.54730646,1933.1,1932.5,0.0011]
[1772211966355,1.88309768,1933.1,1932.5,0.0011]
[1772211966683,1.84379122,1933.0,1932.5,0.0011]
[1772211967263,1.84379122,1933.0,1932.4,0.0011]
[1772211967264,0.58979122,1932.9,1932.4,0.0011]
[1772211967512,0.58979122,1932.9,1932.2,0.0011]
[1772211967813,1.88318604,1932.9,1932.2,0.58361792]
[1772211968364,1.88318604,1932.9,1932.2,0.0011]
[1772211968365,0.58979122,1932.8,1932.2,0.0011]
[1772211968567,0.58979122,1932.7,1932.1,0.0011]
[1772211968770,0.58979122,1932.5,1932.1,0.0011]
[1772211970569,1.254,1932.6,1932.1,0.54733973]
[1772211970773,1.002,1932.9,1932.1,0.54733973]
[1772211971286,0.56072703,1933.1,1932.3,0.54623973]
[1772211971609,0.56072703,1933.7,1932.3,0.54623973]
[1772211971807,0.56072703,1933.6,1932.3,0.54623973]
[1772211971980,0.56072703,1933.6,1932.4,0.54623973]
[1772211972182,0.001,1933.1,1932.4,0.54623973]
[1772211972488,0.56072703,1933.7,1932.6,0.54623973]
[1772211972689,0.839,1933.6,1932.6,0.54623973]
[1772211974013,1.29281339,1933.8,1932.6,0.54623973]
[1772211974211,1.252,1933.7,1932.8,0.54623973]
[1772211974382,1.85371496,1933.6,1932.7,1.29352718]
[1772211975399,1.85371496,1933.6,1932.7,1.83976691]
[1772211975888,0.56072703,1933.5,1932.7,1.83976691]
[1772211977486,0.56072703,1933.3,1932.6,5.17410875]
[1772211978411,0.56072703,1933.5,1932.7,0.54623973]
[1772211978912,1.81172703,1933.5,1932.7,0.54623973]
[1772211979515,1.29312574,1933.3,1932.8,1.29346026]
[1772211979704,1.85383452,1933.4,1932.8,1.29346026]
[1772211980200,0.56072703,1933.4,1932.8,1.29346026]
[1772211980408,3.10558697,1933.7,1932.9,0.54623973]
[1772211980604,3.10558891,1933.7,1932.9,0.54623973]
[1772211981419,1.252,1933.6,1932.9,0.54623973]
[1772211981623,1.252,1933.6,1933.0,1.29332643]
[1772211982425,2.54494379,1933.6,1933.0,1.29332643]
[1772211982607,0.56072703,1933.5,1932.7,1.29352718]
[1772211983215,0.56072703,1933.5,1932.7,1.83976691]
[1772211983589,1.85378589,1933.4,1932.7,1.83976691]
[1772211983788,0.56072703,1933.4,1932.7,1.83976691]
[1772211984044,0.56072703,1933.4,1932.8,0.0011]
[1772211984329,0.56172703,1933.4,1932.8,0.0011]
[1772211984698,1.81272703,1933.4,1932.8,0.0011]
[1772211985005,0.56072703,1933.2,1932.8,0.0011]
[1772211985198,0.56072703,1933.2,1932.5,0.0011]
[1772211985741,0.56072703,1933.0,1932.5,0.0011]
[1772211986029,1.251,1932.9,1932.5,0.0011]
[1772211987289,1.29324187,1933.2,1932.5,0.0011]
[1772211987615,2.54421241,1933.2,1932.6,1.29359412]
[1772211987795,3.10493944,1933.2,1932.6,1.29359412]
[1772211990375,0.001,1933.4,1932.9,0.54623973]
[1772211990495,1.85479691,1933.4,1932.7,0.54623973]
[1772211990820,0.56172703,1933.4,1932.7,0.54623973]
[1772211991327,0.001,1933.4,1932.7,0.54623973]
[1772211991516,0.001,1933.4,1932.8,0.54623973]
[1772211992597,0.001,1933.4,1932.9,1.29339334]
[1772211993522,0.001,1933.4,1932.9,1.83963307]
[1772211996823,0.56172703,1933.4,1932.8,1.29341388]
[1772211997334,0.56072703,1933.3,1932.6,1.29359412]
[1772211997632,0.56072703,1933.3,1932.8,0.0011]
[1772211997872,0.56072703,1933.1,1932.8,0.0011]
[1772211998018,1.81072703,1933.1,1932.8,0.0011]
[1772211998419,0.56072703,1933.0,1932.7,0.0011]
[1772212000208,0.56645355,1932.9,1932.7,0.0011]
[1772212000626,1.29319263,1933.2,1932.7,0.0011]
[1772212000826,1.252,1933.0,1932.7,0.0011]
[1772212001212,0.56645355,1932.9,1932.7,0.0011]
[1772212002134,0.56645355,1932.9,1932.5,0.0011]
[1772212002638,1.29346026,1932.8,1932.5,0.0011]
[1772212003138,0.56645355,1932.7,1932.5,0.0011]
[1772212003340,0.56645355,1932.5,1932.3,0.0011]
[1772212003644,0.56645355,1932.5,1932.1,0.0011]
[1772212004643,1.86018155,1932.4,1932.1,0.0011]
[1772212004950,0.56645355,1932.3,1932.1,0.0011]
[1772212005132,1.82045355,1932.2,1931.9,0.0011]
[1772212005439,1.82045355,1932.2,1931.8,0.0011]
[1772212005634,1.254,1932.2,1931.8,0.0011]
[1772212007409,1.255,1932.5,1931.8,0.54846663]
[1772212008157,1.255,1932.7,1931.8,0.54846663]
[1772212008454,0.56645355,1932.5,1931.8,0.0011]
[1772212010018,0.56645355,1932.5,1931.9,0.0011]
[1772212010251,1.293728,1932.4,1931.9,0.0011]
[1772212010524,1.254,1932.3,1931.9,0.0011]
[1772212010831,1.82045355,1932.3,1931.9,0.0011]
[1772212011234,0.56645355,1932.2,1931.9,0.0011]
[1772212011438,0.56645355,1932.1,1931.6,0.0011]
[1772212012050,1.255,1932.0,1931.6,0.0011]
[1772212012256,3.1155047,1932.0,1931.6,0.0011]
[1772212013052,0.56645355,1931.9,1931.6,0.0011]
[1772212013759,7.6110509,1932.2,1931.6,0.54846663]
[1772212013760,1.256,1932.0,1931.6,0.54846663]
[1772212014060,1.257,1932.1,1931.6,0.54846663]
[1772212014257,1.257,1932.1,1931.7,1.29419682]
[1772212015367,7.60990308,1932.6,1931.8,0.54736663]
[1772212015368,0.56645355,1932.6,1931.8,0.54736663]
[1772212015530,1.256,1932.3,1931.8,0.54736663]
[1772212015866,1.82245355,1932.6,1931.8,0.54736663]
[1772212016244,3.11608488,1932.6,1931.9,1.29406283]
[1772212018662,0.56645355,1932.5,1931.8,1.84144821]
[1772212018868,0.56645355,1932.5,1931.8,1.29408158]
[1772212019038,0.56645355,1932.5,1931.6,1.84267618]
[1772212019739,0.56645355,1932.5,1931.6,0.54846663]
[1772212019938,0.56645355,1932.3,1931.6,1.84272461]
[1772212020140,1.257,1932.2,1931.7,0.54736663]
[1772212020341,1.257,1932.1,1931.7,0.54736663]
[1772212020770,1.256,1932.1,1931.8,1.29412982]
[1772212021167,2.54993801,1932.1,1931.7,0.54736663]
[1772212021360,1.256,1932.1,1931.7,1.84155543]
[1772212021745,2.54993867,1932.1,1931.7,0.54736663]
[1772212021944,2.54993867,1932.1,1931.6,5.17814824]
[1772212021945,2.54993867,1932.1,1931.6,1.29532958]
[1772212022143,0.66946786,1932.1,1931.8,0.39738919]
[1772212022348,1.257,1932.3,1931.8,0.39738919]
[1772212022581,0.56645355,1932.6,1931.8,0.39738919]
[1772212022744,1.86135417,1933.0,1932.1,0.39713866]
[1772212023066,1.59445355,1932.9,1932.1,0.39713866]
[1772212023671,0.001,1932.4,1932.1,0.39713866]
[1772212024545,0.00153886,1933.0,1932.2,0.39665299]
[1772212024745,0.00153886,1933.0,1932.5,1.29366106]
[1772212024746,2.41987277,1933.0,1932.5,1.29366106]
[1772212024979,2.41987277,1933.0,1932.3,1.29376491]
[1772212024980,0.56645355,1932.9,1932.3,1.29376491]
[1772212025548,0.56645355,1932.9,1932.2,1.69046965]
[1772212026273,0.00153886,1933.0,1932.3,0.39640936]
[1772212026479,0.00153886,1933.0,1932.4,0.39640936]
[1772212027059,0.00153886,1933.0,1932.5,1.29366106]
[1772212027445,0.00153886,1933.0,1932.5,1.68959229]
[1772212027649,0.001,1933.3,1932.6,0.39439237]
[1772212027971,0.001,1933.3,1932.9,0.39439237]
[1772212028404,0.001,1933.4,1932.8,2.43549096]
[1772212028577,0.56645355,1933.9,1933.1,0.39417311]
[1772212028879,0.56645355,1934.5,1933.5,0.39417311]
[1772212029060,1.40545355,1934.5,1933.6,1.68709822]
[1772212029259,0.56645355,1934.5,1933.7,0.39417311]
[1772212030164,1.85877798,1934.5,1933.7,0.39417311]
[1772212030765,1.81945355,1934.5,1933.7,0.39417311]
[1772212030966,0.56645355,1934.5,1933.7,0.39417311]
[1772212031174,0.56645355,1934.5,1933.8,1.29279139]
[1772212031483,1.85879768,1934.5,1933.8,1.29279139]
[1772212031652,0.56645355,1934.5,1933.8,1.29279139]
[1772212031858,1.85878,1934.5,1933.8,1.29279139]
[1772212032468,0.56645355,1934.5,1933.8,1.29279139]
[1772212033359,1.85878555,1934.5,1933.7,1.68699655]
[1772212033761,1.85878555,1934.5,1933.7,1.29282344]
[1772212034774,0.56645355,1934.5,1933.7,1.68292783]
[1772212035093,3.08988403,1934.7,1933.8,0.39010439]
[1772212035263,0.54768417,1934.7,1933.9,1.29272454]
[1772212035598,0.54768417,1934.8,1934.0,0.39010439]
[1772212035796,0.00153886,1935.0,1934.2,0.38989404]
[1772212035969,0.54768417,1934.9,1934.2,0.38989404]
[1772212036170,0.54768417,1934.9,1933.9,2.85561858]
[1772212036366,0.54768417,1934.9,1934.0,0.38989404]
[1772212037193,0.54768417,1934.9,1934.2,0.38968332]
[1772212037395,1.83911682,1935.9,1934.5,0.45029994]
[1772212037698,0.54768417,1935.8,1934.6,1.137]
[1772212037902,0.54768417,1935.8,1934.6,1.58713745]
[1772212038102,0.54768417,1935.8,1934.1,1.29259086]
[1772212038103,0.54768417,1934.8,1934.1,1.29259086]
[1772212038804,0.54768417,1934.8,1934.0,1.29414998]
[1772212040095,0.54768417,1934.7,1934.0,1.29414998]
[1772212040879,0.54768417,1935.0,1934.2,3.40723094]
[1772212041697,0.54768417,1935.6,1934.1,0.44949052]
[1772212041896,0.54768417,1935.4,1934.4,0.44949052]
[1772212042099,0.54768417,1935.4,1934.5,1.62149052]
[1772212043694,0.54768417,1935.4,1934.6,1.29225679]
[1772212045104,1.83941916,1935.4,1934.6,1.29225679]
[1772212045479,0.54768417,1935.3,1934.6,1.29225679]
[1772212045904,0.54768417,1935.1,1934.4,1.2923904]
[1772212046512,0.54768417,1935.6,1934.6,3.85596649]
[1772212048017,0.54768417,1935.6,1934.7,1.29219]
[1772212048188,0.54768417,1935.6,1934.8,1.171]
[1772212049107,0.54768417,1935.5,1934.7,1.29219]
[1772212049486,0.54868417,1935.5,1934.7,1.29219]
[1772212049690,0.54768417,1935.3,1934.3,1.2923904]
[1772212050012,1.29185613,1935.2,1934.3,1.2923904]
[1772212050216,0.54768417,1935.1,1934.3,1.2923904]
[1772212051391,0.54768417,1935.1,1934.1,5.17092887]
[1772212051392,0.54768417,1935.0,1934.1,0.0011]
[1772212051699,0.54768417,1935.0,1934.1,1.29368694]
[1772212052106,0.54768417,1935.0,1934.2,3.40723094]
[1772212052318,0.54768417,1935.0,1934.2,3.85438087]
[1772212052494,0.001,1935.5,1934.7,3.40723094]
[1772212052687,0.54868417,1935.5,1934.5,0.44615195]
[1772212053120,0.54768417,1935.4,1934.5,0.44615195]
[1772212054028,0.54768417,1935.4,1934.6,1.29225679]
[1772212055309,1.83942205,1935.4,1934.6,1.29225679]
[1772212055497,0.54768417,1935.3,1934.6,1.29225679]
[1772212057612,0.001,1935.5,1934.9,3.40723094]
[1772212058530,0.54868417,1935.5,1935.0,1.29198966]
[1772212060423,6.40457152,1935.9,1935.2,3.40723094]
[1772212060424,0.55532355,1935.9,1935.2,3.40723094]
[1772212061007,0.55532355,1935.8,1935.0,1.29198966]
[1772212061823,0.001,1935.4,1935.0,1.29198966]
[1772212062798,0.55532355,1935.5,1935.0,1.29198966]
[1772212062994,0.55532355,1935.9,1935.0,1.72707071]
[1772212063398,0.55532355,1935.9,1935.1,0.05167691]
[1772212064925,0.55532355,1935.8,1935.1,0.05167691]
[1772212065131,0.55532355,1935.8,1935.1,1.29187593]
[1772212066422,0.55532355,1935.8,1935.0,5.16769159]
[1772212066637,0.55532355,1935.8,1934.7,1.29323862]
[1772212066806,0.55532355,1935.6,1934.7,0.0011]
[1772212067005,0.55532355,1935.4,1934.5,1.1741]
[1772212067208,0.55532355,1935.2,1934.5,0.0011]
[1772212067935,0.55532355,1935.1,1934.5,0.0011]
[1772212068409,1.235,1935.3,1934.1,1.29366408]
[1772212068410,0.55532355,1934.8,1934.1,0.0011]
[1772212068609,3.40723094,1934.9,1934.1,0.0011]
[1772212068610,0.55532355,1934.6,1934.1,1.29367886]
[1772212068811,0.55532355,1934.5,1934.1,0.0011]
[1772212069130,0.55532355,1934.3,1934.1,0.0011]
[1772212070416,0.55532355,1934.6,1934.1,0.0011]
[1772212071238,1.84759858,1934.6,1934.1,0.0011]
[1772212071534,0.55532355,1934.6,1934.1,0.0011]
[1772212073139,0.55532355,1934.5,1934.1,0.0011]
[1772212074107,0.55532355,1934.5,1934.2,0.0011]
[1772212074310,0.55632355,1934.5,1934.2,0.0011]
[1772212075037,0.001,1934.5,1934.2,0.0011]
[1772212075239,0.55532355,1934.8,1934.2,0.0011]
[1772212075439,0.55532355,1934.7,1934.2,0.0011]
[1772212077840,0.55532355,1934.6,1934.2,0.0011]
[1772212079649,0.55532355,1935.3,1934.2,0.0011]
[1772212080511,0.55532355,1935.3,1934.2,0.42397874]
[1772212080947,0.55532355,1935.3,1934.4,0.4221744]
[1772212081312,0.55532355,1935.3,1934.2,0.0011]
[1772212081313,0.55532355,1935.3,1934.6,3.82940534]
[1772212081517,1.29161707,1935.6,1934.8,1.29212321]
[1772212081518,1.84699834,1935.5,1934.8,1.29212321]
[1772212082038,0.55532355,1935.5,1934.8,1.29212321]
[1772212082239,1.84698955,1935.5,1934.8,1.29212321]
[1772212084214,0.55532355,1935.4,1934.8,1.29212321]
[1772212084945,0.55532355,1935.4,1934.5,1.29225679]
[1772212085341,0.55532355,1935.4,1934.7,0.41943767]
[1772212085646,5.16568459,1935.9,1935.0,0.41877234]
[1772212085647,0.55532355,1935.9,1935.0,0.41877234]
[1772212086147,1.84673136,1935.9,1935.1,1.29192289]
[1772212086327,1.84673136,1935.9,1935.1,1.71069523]
[1772212086328,0.55532355,1935.9,1935.1,1.71069523]
[1772212086663,0.55532355,1935.8,1935.1,1.71069523]
[1772212086836,0.001,1935.4,1935.1,1.29192289]
[1772212087023,0.55532355,1935.8,1935.1,1.29192289]
[1772212087539,0.55532355,1935.8,1934.9,5.16808753]
[1772212088437,0.55532355,1935.8,1934.8,1.29205643]
[1772212088438,0.55532355,1935.6,1934.7,5.16769159]
[1772212090055,0.55532355,1935.6,1934.8,0.41558154]
[1772212090470,0.55532355,1935.6,1934.9,1.29205643]
[1772212090660,1.8469194,1935.6,1934.9,1.29205643]
[1772212090964,0.53018903,1935.5,1934.9,1.29205643]
[1772212092758,1.82171594,1935.7,1934.9,1.70580946]
[1772212093135,0.53018903,1935.9,1935.2,3.40723094]
[1772212093368,0.00153886,1936.0,1935.5,3.82098397]
[1772212094782,0.53018903,1936.3,1935.6,1.70415394]
[1772212095269,0.53018903,1936.3,1935.6,4.13199568]
[1772212095861,1.82131303,1936.3,1935.6,1.29158917]
[1772212096037,0.53018903,1936.2,1935.6,1.29158917]
[1772212096433,0.53018903,1936.6,1935.8,2.42784174]
[1772212096757,1.82113047,1936.6,1935.9,1.29138901]
[1772212096963,0.53018903,1936.6,1935.9,1.29138901]
[1772212097336,0.53018903,1936.5,1935.9,1.29138901]
[1772212097534,0.53018903,1936.5,1935.7,5.1659078]
[1772212098762,1.82124459,1936.4,1935.7,5.1659078]
[1772212099290,0.53018903,1936.4,1935.7,5.1659078]
[1772212099461,0.53018903,1936.4,1935.7,1.29152244]
[1772212099979,0.53018903,1936.4,1935.6,1.2915358]
[1772212100762,0.53018903,1936.2,1935.5,5.16639438]
[1772212101474,0.53018903,1936.2,1935.5,5.57499135]
[1772212101778,0.53018903,1936.2,1935.5,5.16639438]
[1772212102356,0.53018903,1936.2,1935.0,2.83744189]